[Event "Titled Tuesday Blitz May 30 Early 2023"]
[White "Begunov, Konstantin"]
[Black "Nasir, Zehn"]
[WhiteFideId "4118510"]
[BlackFideId "2613239"]
[WhiteElo "2050"]
[BlackElo "1993"]
[Result "0-1"]
[Round "06"]
[TimeControl "180+2"]
[Date "2023.05.30"]
[WhiteClock "0:00:00"]
[BlackClock "0:00:08"]

1. d4 {[%clk 0:02:57]}  c6 {[%clk 0:03:00]} 2. c4 {[%clk 0:02:55]}  d5 {[%clk 0:02:59]} 3. Nc3 {[%clk 0:02:55]}  e6 {[%clk 0:02:59]} 4. cxd5 {[%clk 0:02:54]}  exd5 {[%clk 0:02:59]} 5. Nf3 {[%clk 0:02:54]}  Nf6 {[%clk 0:02:56]} 6. Bg5 {[%clk 0:02:54]}  Be7 {[%clk 0:02:56]} 7. Qc2 {[%clk 0:02:54]}  Bg4 {[%clk 0:02:53]} 8. Ne5 {[%clk 0:02:50]}  Bh5 {[%clk 0:02:50]} 9. e3 {[%clk 0:02:50]}  Nbd7 {[%clk 0:02:48]} 10. f4 {[%clk 0:02:44]}  Nxe5 {[%clk 0:02:43]} 11. dxe5 {[%clk 0:02:42]}  Bg6 {[%clk 0:02:26]} 12. f5 {[%clk 0:02:21]}  Ng4 {[%clk 0:02:01]} 13. Bxe7 {[%clk 0:02:15]}  Qxe7 {[%clk 0:02:00]} 14. fxg6 {[%clk 0:02:13]}  Nxe3 {[%clk 0:01:58]} 15. Qf2 {[%clk 0:01:34]}  Qxe5 {[%clk 0:01:40]} 16. Qxf7+ {[%clk 0:01:28]}  Kd8 {[%clk 0:01:40]} 17. Kd2 {[%clk 0:01:07]}  d4 {[%clk 0:01:19]} 18. Qxb7 {[%clk 0:00:18]}  Rb8 {[%clk 0:01:08]} 19. Qxc6 {[%clk 0:00:11]}  dxc3+ {[%clk 0:01:06]} 20. Qxc3 {[%clk 0:00:06]}  Rxb2+ {[%clk 0:01:01]} 21. Kd3 {[%clk 0:00:06]}  Qd5+ {[%clk 0:00:35]} 22. Kxe3 {[%clk 0:00:06]}  Re8+ {[%clk 0:00:34]} 23. Kf4 {[%clk 0:00:02]}  Rf8+ {[%clk 0:00:25]} 24. Kg3 {[%clk 0:00:02]}  Qg5+ {[%clk 0:00:21]} 25. Kh3 {[%clk 0:00:03]}  Qh5+ {[%clk 0:00:20]} 26. Kg3 {[%clk 0:00:03]}  Qxg6+ {[%clk 0:00:20]} 27. Kh3 {[%clk 0:00:04]}  Qh5+ {[%clk 0:00:17]} 28. Kg3 {[%clk 0:00:04]}  Rb6 {[%clk 0:00:14]} 29. Qd4+ {[%clk 0:00:03]}  Kc7 {[%clk 0:00:09]} 30. Rc1+ {[%clk 0:00:02]}  Kb7 {[%clk 0:00:08]} 31. Qd7+ {[%clk 0:00:02]}  Kb8 {[%clk 0:00:07]} 32. Qc7+ {[%clk 0:00:00]}  Ka8 {[%clk 0:00:08]} 0-1


[Site "https://www.chess.com"]

[Event "Titled Tuesday Blitz May 30 Early 2023"]
[White "Bartel, Michal"]
[Black "Koutlas, Nikolaos"]
[WhiteFideId "1119257"]
[BlackFideId "25827138"]
[WhiteElo "2282"]
[BlackElo "2215"]
[Result "1/2-1/2"]
[Round "06"]
[TimeControl "180+2"]
[Date "2023.05.30"]
[WhiteClock "0:00:48"]
[BlackClock "0:00:07"]

1. e4 {[%clk 0:03:00]}  e6 {[%clk 0:02:59]} 2. d4 {[%clk 0:03:00]}  d5 {[%clk 0:02:58]} 3. Nc3 {[%clk 0:03:01]}  h6 {[%clk 0:02:58]} 4. e5 {[%clk 0:02:58]}  c5 {[%clk 0:02:56]} 5. Nce2 {[%clk 0:02:57]}  cxd4 {[%clk 0:02:56]} 6. Nxd4 {[%clk 0:02:58]}  Nc6 {[%clk 0:02:56]} 7. Ngf3 {[%clk 0:02:59]}  Nge7 {[%clk 0:02:51]} 8. Bb5 {[%clk 0:02:58]}  Bd7 {[%clk 0:02:51]} 9. Bxc6 {[%clk 0:02:59]}  bxc6 {[%clk 0:02:49]} 10. c3 {[%clk 0:02:57]}  c5 {[%clk 0:02:49]} 11. Nb3 {[%clk 0:02:58]}  Nc6 {[%clk 0:02:49]} 12. O-O {[%clk 0:02:56]}  Be7 {[%clk 0:02:48]} 13. Be3 {[%clk 0:02:56]}  d4 {[%clk 0:02:45]} 14. cxd4 {[%clk 0:02:55]}  cxd4 {[%clk 0:02:44]} 15. Nbxd4 {[%clk 0:02:54]}  Nb4 {[%clk 0:02:40]} 16. Nb3 {[%clk 0:02:46]}  O-O {[%clk 0:02:18]} 17. Bc5 {[%clk 0:02:34]}  Rc8 {[%clk 0:02:14]} 18. Bxe7 {[%clk 0:02:33]}  Qxe7 {[%clk 0:02:15]} 19. Qd6 {[%clk 0:02:30]}  Qxd6 {[%clk 0:02:02]} 20. exd6 {[%clk 0:02:31]}  Rc2 {[%clk 0:01:59]} 21. a3 {[%clk 0:02:21]}  Nd3 {[%clk 0:01:56]} 22. Rad1 {[%clk 0:02:05]}  Nxb2 {[%clk 0:01:53]} 23. Rd2 {[%clk 0:02:06]}  Rxd2 {[%clk 0:01:43]} 24. Nfxd2 {[%clk 0:02:07]}  Rc8 {[%clk 0:01:38]} 25. Rb1 {[%clk 0:02:04]}  Nd3 {[%clk 0:01:33]} 26. Nd4 {[%clk 0:01:47]}  e5 {[%clk 0:01:26]} 27. N4f3 {[%clk 0:01:48]}  Rc6 {[%clk 0:01:20]} 28. h3 {[%clk 0:01:36]}  Rxd6 {[%clk 0:01:18]} 29. Nc4 {[%clk 0:01:35]}  Rd5 {[%clk 0:01:16]} 30. Rb8+ {[%clk 0:01:25]}  Kh7 {[%clk 0:01:13]} 31. Rb7 {[%clk 0:01:25]}  f6 {[%clk 0:00:37]} 32. Rxa7 {[%clk 0:01:17]}  Bb5 {[%clk 0:00:34]} 33. Ne3 {[%clk 0:01:14]}  Rc5 {[%clk 0:00:33]} 34. a4 {[%clk 0:01:08]}  Bc6 {[%clk 0:00:21]} 35. Ng4 {[%clk 0:01:08]}  Bxf3 {[%clk 0:00:16]} 36. gxf3 {[%clk 0:01:07]}  Kg6 {[%clk 0:00:16]} 37. a5 {[%clk 0:01:05]}  Rc1+ {[%clk 0:00:16]} 38. Kg2 {[%clk 0:01:05]}  Nf4+ {[%clk 0:00:16]} 39. Kh2 {[%clk 0:01:04]}  h5 {[%clk 0:00:14]} 40. Ne3 {[%clk 0:01:04]}  Ra1 {[%clk 0:00:14]} 41. a6 {[%clk 0:01:01]}  h4 {[%clk 0:00:14]} 42. Ra8 {[%clk 0:01:00]}  Ne6 {[%clk 0:00:09]} 43. a7 {[%clk 0:00:57]}  Nd4 {[%clk 0:00:09]} 44. Rh8 {[%clk 0:00:56]}  Rxa7 {[%clk 0:00:08]} 45. Kg2 {[%clk 0:00:55]}  Kg5 {[%clk 0:00:07]} 46. Rh7 {[%clk 0:00:52]}  Nf5 {[%clk 0:00:05]} 47. Nxf5 {[%clk 0:00:51]}  Kxf5 {[%clk 0:00:06]} 48. Rxh4 {[%clk 0:00:52]}  Ra2 {[%clk 0:00:07]} 49. Re4 {[%clk 0:00:51]}  g5 {[%clk 0:00:06]} 50. h4 {[%clk 0:00:51]}  gxh4 {[%clk 0:00:04]} 51. Rxh4 {[%clk 0:00:52]}  Rb2 {[%clk 0:00:04]} 52. Re4 {[%clk 0:00:52]}  Kg5 {[%clk 0:00:04]} 53. Kg3 {[%clk 0:00:50]}  Rb3 {[%clk 0:00:04]} 54. Re3 {[%clk 0:00:48]}  Rb4 {[%clk 0:00:04]} 55. Re4 {[%clk 0:00:48]}  Rb3 {[%clk 0:00:04]} 56. Re3 {[%clk 0:00:49]}  Rxe3 {[%clk 0:00:05]} 57. fxe3 {[%clk 0:00:49]}  Kf5 {[%clk 0:00:05]} 58. Kh4 {[%clk 0:00:46]}  e4 {[%clk 0:00:06]} 59. f4 {[%clk 0:00:44]}  Kg6 {[%clk 0:00:05]} 60. Kg4 {[%clk 0:00:44]}  f5+ {[%clk 0:00:06]} 61. Kh4 {[%clk 0:00:45]}  Kh6 {[%clk 0:00:06]} 62. Kg3 {[%clk 0:00:45]}  Kg6 {[%clk 0:00:07]} 63. Kh3 {[%clk 0:00:45]}  Kf6 {[%clk 0:00:06]} 64. Kh4 {[%clk 0:00:46]}  Kg6 {[%clk 0:00:06]} 65. Kg3 {[%clk 0:00:46]}  Kh5 {[%clk 0:00:06]} 66. Kh3 {[%clk 0:00:47]}  Kh6 {[%clk 0:00:07]} 67. Kh4 {[%clk 0:00:47]}  Kg6 {[%clk 0:00:07]} 68. Kg3 {[%clk 0:00:48]}  Kf6 {[%clk 0:00:08]} 69. Kh4 {[%clk 0:00:48]}  Kg6 {[%clk 0:00:07]} 1/2-1/2


[Site "https://www.chess.com"]

[Event "Titled Tuesday Blitz May 30 Early 2023"]
[White "Srebrnic, Marko"]
[Black "Golubev, Mikhail"]
[WhiteFideId "14603616"]
[BlackFideId "14100983"]
[WhiteElo "2341"]
[BlackElo "2374"]
[Result "1/2-1/2"]
[Round "06"]
[TimeControl "180+2"]
[Date "2023.05.30"]
[WhiteClock "0:00:25"]
[BlackClock "0:00:11"]

1. e4 {[%clk 0:03:00]}  c5 {[%clk 0:02:59]} 2. Nf3 {[%clk 0:03:00]}  d6 {[%clk 0:02:59]} 3. g3 {[%clk 0:03:00]}  Nf6 {[%clk 0:02:58]} 4. Qe2 {[%clk 0:03:00]}  Nc6 {[%clk 0:02:54]} 5. c3 {[%clk 0:03:00]}  e5 {[%clk 0:02:49]} 6. Bg2 {[%clk 0:02:59]}  Be7 {[%clk 0:02:50]} 7. O-O {[%clk 0:02:59]}  O-O {[%clk 0:02:50]} 8. Na3 {[%clk 0:02:59]}  Re8 {[%clk 0:02:47]} 9. Nc2 {[%clk 0:02:58]}  Be6 {[%clk 0:02:38]} 10. d4 {[%clk 0:02:53]}  exd4 {[%clk 0:02:23]} 11. cxd4 {[%clk 0:02:54]}  cxd4 {[%clk 0:02:10]} 12. Ncxd4 {[%clk 0:02:50]}  Nxd4 {[%clk 0:02:10]} 13. Nxd4 {[%clk 0:02:49]}  Bg4 {[%clk 0:02:10]} 14. f3 {[%clk 0:02:47]}  Bd7 {[%clk 0:02:09]} 15. Be3 {[%clk 0:02:39]}  Rc8 {[%clk 0:02:00]} 16. Rac1 {[%clk 0:02:38]}  Qa5 {[%clk 0:01:49]} 17. a3 {[%clk 0:02:37]}  h6 {[%clk 0:01:34]} 18. Rfd1 {[%clk 0:02:23]}  Bf8 {[%clk 0:01:31]} 19. Rxc8 {[%clk 0:02:08]}  Rxc8 {[%clk 0:01:29]} 20. Qd3 {[%clk 0:02:05]}  Re8 {[%clk 0:01:23]} 21. b4 {[%clk 0:02:05]}  Qh5 {[%clk 0:01:12]} 22. Bf4 {[%clk 0:01:57]}  g5 {[%clk 0:01:03]} 23. g4 {[%clk 0:01:51]}  Qg6 {[%clk 0:00:59]} 24. Bg3 {[%clk 0:01:48]}  h5 {[%clk 0:00:53]} 25. h3 {[%clk 0:01:41]}  hxg4 {[%clk 0:00:50]} 26. hxg4 {[%clk 0:01:37]}  d5 {[%clk 0:00:40]} 27. e5 {[%clk 0:01:09]}  Qxd3 {[%clk 0:00:40]} 28. Rxd3 {[%clk 0:01:10]}  Nh7 {[%clk 0:00:40]} 29. Nf5 {[%clk 0:01:11]}  Bc6 {[%clk 0:00:31]} 30. Bf1 {[%clk 0:00:44]}  f6 {[%clk 0:00:23]} 31. b5 {[%clk 0:00:18]}  Bxb5 {[%clk 0:00:18]} 32. Rxd5 {[%clk 0:00:18]}  Bxf1 {[%clk 0:00:15]} 33. Kxf1 {[%clk 0:00:19]}  Re6 {[%clk 0:00:11]} 34. Rd7 {[%clk 0:00:15]}  fxe5 {[%clk 0:00:09]} 35. Rxb7 {[%clk 0:00:14]}  e4 {[%clk 0:00:07]} 36. Kf2 {[%clk 0:00:10]}  exf3 {[%clk 0:00:05]} 37. Kxf3 {[%clk 0:00:11]}  Ra6 {[%clk 0:00:05]} 38. a4 {[%clk 0:00:07]}  Rxa4 {[%clk 0:00:04]} 39. Be5 {[%clk 0:00:08]}  Ra3+ {[%clk 0:00:03]} 40. Kf2 {[%clk 0:00:08]}  Ra2+ {[%clk 0:00:02]} 41. Ke3 {[%clk 0:00:08]}  Ra3+ {[%clk 0:00:02]} 42. Ke2 {[%clk 0:00:08]}  Ra2+ {[%clk 0:00:03]} 43. Kf3 {[%clk 0:00:08]}  Ra3+ {[%clk 0:00:03]} 44. Ke4 {[%clk 0:00:08]}  Ra4+ {[%clk 0:00:03]} 45. Kd5 {[%clk 0:00:08]}  Ra5+ {[%clk 0:00:03]} 46. Ke6 {[%clk 0:00:07]}  Ra6+ {[%clk 0:00:03]} 47. Kd7 {[%clk 0:00:07]}  Nf6+ {[%clk 0:00:03]} 48. Bxf6 {[%clk 0:00:06]}  Rxf6 {[%clk 0:00:04]} 49. Ke8 {[%clk 0:00:06]}  Re6+ {[%clk 0:00:04]} 50. Kd8 {[%clk 0:00:06]}  Rf6 {[%clk 0:00:05]} 51. Rxa7 {[%clk 0:00:03]}  Bc5 {[%clk 0:00:05]} 52. Rd7 {[%clk 0:00:03]}  Rf8+ {[%clk 0:00:04]} 53. Kc7 {[%clk 0:00:03]}  Ba3 {[%clk 0:00:04]} 54. Rg7+ {[%clk 0:00:03]}  Kh8 {[%clk 0:00:04]} 55. Rxg5 {[%clk 0:00:04]}  Rf7+ {[%clk 0:00:03]} 56. Kc6 {[%clk 0:00:03]}  Bc1 {[%clk 0:00:03]} 57. Rh5+ {[%clk 0:00:03]}  Rh7 {[%clk 0:00:03]} 58. Kd5 {[%clk 0:00:04]}  Rxh5 {[%clk 0:00:03]} 59. gxh5 {[%clk 0:00:05]}  Kh7 {[%clk 0:00:03]} 60. Ke6 {[%clk 0:00:06]}  Bg5 {[%clk 0:00:03]} 61. Kf7 {[%clk 0:00:07]}  Bh6 {[%clk 0:00:03]} 62. Ke6 {[%clk 0:00:08]}  Bf4 {[%clk 0:00:04]} 63. Kf6 {[%clk 0:00:08]}  Bd2 {[%clk 0:00:04]} 64. Ke6 {[%clk 0:00:09]}  Bf4 {[%clk 0:00:04]} 65. Kd5 {[%clk 0:00:09]}  Bd2 {[%clk 0:00:04]} 66. Kc4 {[%clk 0:00:10]}  Bf4 {[%clk 0:00:05]} 67. Kd3 {[%clk 0:00:11]}  Bg5 {[%clk 0:00:05]} 68. Ke4 {[%clk 0:00:12]}  Bd2 {[%clk 0:00:05]} 69. Kf3 {[%clk 0:00:13]}  Bc1 {[%clk 0:00:05]} 70. Kg4 {[%clk 0:00:14]}  Bh6 {[%clk 0:00:05]} 71. Kh3 {[%clk 0:00:15]}  Bc1 {[%clk 0:00:05]} 72. Kg2 {[%clk 0:00:16]}  Bh6 {[%clk 0:00:06]} 73. Kf2 {[%clk 0:00:17]}  Bc1 {[%clk 0:00:06]} 74. Ke2 {[%clk 0:00:17]}  Bh6 {[%clk 0:00:07]} 75. Kd3 {[%clk 0:00:18]}  Bg5 {[%clk 0:00:08]} 76. Kc3 {[%clk 0:00:19]}  Bh6 {[%clk 0:00:08]} 77. Kd4 {[%clk 0:00:19]}  Bg5 {[%clk 0:00:09]} 78. Ke5 {[%clk 0:00:20]}  Bh6 {[%clk 0:00:09]} 79. Kf6 {[%clk 0:00:21]}  Bc1 {[%clk 0:00:09]} 80. Kf7 {[%clk 0:00:17]}  Bb2 {[%clk 0:00:10]} 81. Ke6 {[%clk 0:00:17]}  Bc1 {[%clk 0:00:10]} 82. Ke5 {[%clk 0:00:17]}  Bb2+ {[%clk 0:00:10]} 83. Ke4 {[%clk 0:00:18]}  Bc1 {[%clk 0:00:11]} 84. Kf3 {[%clk 0:00:18]}  Bg5 {[%clk 0:00:11]} 85. Kg4 {[%clk 0:00:19]}  Bc1 {[%clk 0:00:11]} 86. Ne7 {[%clk 0:00:19]}  Bd2 {[%clk 0:00:11]} 87. Ng6 {[%clk 0:00:20]}  Bc1 {[%clk 0:00:11]} 88. Ne5 {[%clk 0:00:21]}  Bd2 {[%clk 0:00:11]} 89. Nf3 {[%clk 0:00:22]}  Bc1 {[%clk 0:00:12]} 90. Nd4 {[%clk 0:00:22]}  Be3 {[%clk 0:00:11]} 91. Nf5 {[%clk 0:00:23]}  Bc1 {[%clk 0:00:11]} 92. Nd6 {[%clk 0:00:22]}  Bd2 {[%clk 0:00:11]} 93. Ne4 {[%clk 0:00:23]}  Bc1 {[%clk 0:00:12]} 94. Nf6+ {[%clk 0:00:23]}  Kg7 {[%clk 0:00:11]} 95. Nd5 {[%clk 0:00:24]}  Bd2 {[%clk 0:00:10]} 96. Ne7 {[%clk 0:00:25]}  Kh7 {[%clk 0:00:10]} 97. Nf5 {[%clk 0:00:25]}  Bc1 {[%clk 0:00:11]} 1/2-1/2


[Site "https://www.chess.com"]

[Event "Titled Tuesday Blitz May 30 Early 2023"]
[White "Abdilkhair, Abilmansur"]
[Black "Vlassov, Nikolai"]
[WhiteFideId "13716417"]
[BlackFideId "4103360"]
[WhiteElo "2215"]
[BlackElo "2324"]
[Result "1-0"]
[Round "06"]
[TimeControl "180+2"]
[Date "2023.05.30"]
[WhiteClock "0:00:44"]
[BlackClock "0:00:00"]

1. d3 {[%clk 0:02:52]}  e5 {[%clk 0:02:58]} 2. Nf3 {[%clk 0:02:46]}  Nc6 {[%clk 0:02:58]} 3. g3 {[%clk 0:02:46]}  f5 {[%clk 0:02:54]} 4. Bg2 {[%clk 0:02:45]}  Nf6 {[%clk 0:02:54]} 5. O-O {[%clk 0:02:46]}  d5 {[%clk 0:02:50]} 6. c4 {[%clk 0:02:45]}  d4 {[%clk 0:02:15]} 7. e3 {[%clk 0:02:44]}  dxe3 {[%clk 0:02:13]} 8. Bxe3 {[%clk 0:02:42]}  Be7 {[%clk 0:02:09]} 9. b4 {[%clk 0:02:40]}  e4 {[%clk 0:01:48]} 10. dxe4 {[%clk 0:02:23]}  Qxd1 {[%clk 0:01:45]} 11. Rxd1 {[%clk 0:02:22]}  fxe4 {[%clk 0:01:44]} 12. Nd4 {[%clk 0:02:15]}  Nxb4 {[%clk 0:01:38]} 13. Nc3 {[%clk 0:02:14]}  Bg4 {[%clk 0:01:33]} 14. Rdb1 {[%clk 0:02:13]}  Bc5 {[%clk 0:00:53]} 15. Nxe4 {[%clk 0:01:56]}  Bxd4 {[%clk 0:00:51]} 16. Bxd4 {[%clk 0:01:53]}  Nc2 {[%clk 0:00:51]} 17. Nxf6+ {[%clk 0:01:48]}  gxf6 {[%clk 0:00:48]} 18. Bxb7 {[%clk 0:01:48]}  Nxd4 {[%clk 0:00:21]} 19. Bxa8 {[%clk 0:01:42]}  Ke7 {[%clk 0:00:16]} 20. Re1+ {[%clk 0:01:30]}  Kd6 {[%clk 0:00:15]} 21. Be4 {[%clk 0:01:28]}  h5 {[%clk 0:00:13]} 22. Kg2 {[%clk 0:01:28]}  h4 {[%clk 0:00:12]} 23. f3 {[%clk 0:01:28]}  Be6 {[%clk 0:00:10]} 24. c5+ {[%clk 0:01:25]}  Kxc5 {[%clk 0:00:10]} 25. Rec1+ {[%clk 0:01:24]}  Kd6 {[%clk 0:00:10]} 26. Rab1 {[%clk 0:01:19]}  hxg3 {[%clk 0:00:09]} 27. hxg3 {[%clk 0:01:18]}  f5 {[%clk 0:00:08]} 28. Bd3 {[%clk 0:01:12]}  Bxa2 {[%clk 0:00:08]} 29. Rb7 {[%clk 0:01:01]}  Bd5 {[%clk 0:00:07]} 30. Rbxc7 {[%clk 0:00:56]}  Nxf3 {[%clk 0:00:05]} 31. Kf2 {[%clk 0:00:52]}  Ne5 {[%clk 0:00:04]} 32. Ke3 {[%clk 0:00:44]}  Rh3 {[%clk 0:00:01]} 33. Bxf5 {[%clk 0:00:43]}  Rxg3+ {[%clk 0:00:00]} 34. Kf4 {[%clk 0:00:44]} 1-0


[Site "https://www.chess.com"]

[Event "Titled Tuesday Blitz May 30 Early 2023"]
[White "Gheorghiu, Calin"]
[Black "KorolDimitriy75"]
[WhiteFideId "1200305"]
[WhiteElo "2223"]
[BlackElo "2415"]
[Result "1-0"]
[Round "06"]
[TimeControl "180+2"]
[Date "2023.05.30"]
[WhiteClock "0:00:06"]
[BlackClock "0:00:03"]

1. e4 {[%clk 0:02:49]}  c5 {[%clk 0:03:00]} 2. Nf3 {[%clk 0:02:48]}  d6 {[%clk 0:03:00]} 3. Bb5+ {[%clk 0:02:46]}  Nd7 {[%clk 0:02:59]} 4. O-O {[%clk 0:02:44]}  Nf6 {[%clk 0:02:58]} 5. Re1 {[%clk 0:02:44]}  a6 {[%clk 0:02:58]} 6. Bf1 {[%clk 0:02:44]}  e5 {[%clk 0:02:57]} 7. c3 {[%clk 0:02:43]}  Be7 {[%clk 0:02:57]} 8. d4 {[%clk 0:02:43]}  O-O {[%clk 0:02:56]} 9. a4 {[%clk 0:02:42]}  b6 {[%clk 0:02:52]} 10. Bg5 {[%clk 0:02:36]}  Re8 {[%clk 0:02:49]} 11. Nbd2 {[%clk 0:02:32]}  Qc7 {[%clk 0:02:45]} 12. Nc4 {[%clk 0:02:24]}  Bb7 {[%clk 0:02:39]} 13. d5 {[%clk 0:02:13]}  h6 {[%clk 0:02:08]} 14. Bh4 {[%clk 0:02:01]}  Nh7 {[%clk 0:01:58]} 15. Ne3 {[%clk 0:01:52]}  Bf8 {[%clk 0:01:47]} 16. Qd2 {[%clk 0:01:45]}  g6 {[%clk 0:01:00]} 17. Ng4 {[%clk 0:01:17]}  h5 {[%clk 0:00:43]} 18. Nh6+ {[%clk 0:01:16]}  Kg7 {[%clk 0:00:43]} 19. g4 {[%clk 0:01:15]}  hxg4 {[%clk 0:00:35]} 20. Nxg4 {[%clk 0:01:15]}  Kg8 {[%clk 0:00:26]} 21. Kh1 {[%clk 0:01:13]}  Bg7 {[%clk 0:00:24]} 22. Bh3 {[%clk 0:01:09]}  Ndf6 {[%clk 0:00:17]} 23. Nxf6+ {[%clk 0:01:06]}  Nxf6 {[%clk 0:00:16]} 24. Qe3 {[%clk 0:00:50]}  Bc8 {[%clk 0:00:15]} 25. Ng5 {[%clk 0:00:44]}  Bxh3 {[%clk 0:00:11]} 26. Qxh3 {[%clk 0:00:41]}  Qd7 {[%clk 0:00:12]} 27. Qxd7 {[%clk 0:00:20]}  Nxd7 {[%clk 0:00:13]} 28. f3 {[%clk 0:00:19]}  b5 {[%clk 0:00:11]} 29. Nh3 {[%clk 0:00:19]}  Reb8 {[%clk 0:00:09]} 30. axb5 {[%clk 0:00:18]}  axb5 {[%clk 0:00:09]} 31. Nf2 {[%clk 0:00:17]}  Bf8 {[%clk 0:00:08]} 32. Nd3 {[%clk 0:00:16]}  c4 {[%clk 0:00:08]} 33. Nb4 {[%clk 0:00:16]}  Nc5 {[%clk 0:00:07]} 34. Nc6 {[%clk 0:00:16]}  Rc8 {[%clk 0:00:07]} 35. Be7 {[%clk 0:00:15]}  Nb3 {[%clk 0:00:06]} 36. Rxa8 {[%clk 0:00:08]}  Rxa8 {[%clk 0:00:07]} 37. Bxf8 {[%clk 0:00:04]}  Kxf8 {[%clk 0:00:08]} 38. h4 {[%clk 0:00:04]}  Ra2 {[%clk 0:00:07]} 39. Re2 {[%clk 0:00:05]}  Nc1 {[%clk 0:00:06]} 40. Rh2 {[%clk 0:00:04]}  Nd3 {[%clk 0:00:06]} 41. h5 {[%clk 0:00:04]}  gxh5 {[%clk 0:00:05]} 42. Rxh5 {[%clk 0:00:04]}  Rxb2 {[%clk 0:00:06]} 43. Rh6 {[%clk 0:00:04]}  Rc2 {[%clk 0:00:06]} 44. Rxd6 {[%clk 0:00:03]}  Rxc3 {[%clk 0:00:05]} 45. Rd8+ {[%clk 0:00:04]}  Kg7 {[%clk 0:00:05]} 46. d6 {[%clk 0:00:05]}  Rc2 {[%clk 0:00:04]} 47. d7 {[%clk 0:00:05]}  Rc1+ {[%clk 0:00:05]} 48. Kg2 {[%clk 0:00:05]}  Rc2+ {[%clk 0:00:05]} 49. Kg3 {[%clk 0:00:05]}  Rd2 {[%clk 0:00:04]} 50. Rg8+ {[%clk 0:00:05]}  Kxg8 {[%clk 0:00:04]} 51. d8=Q+ {[%clk 0:00:06]}  Kg7 {[%clk 0:00:05]} 52. Qg5+ {[%clk 0:00:06]}  Kf8 {[%clk 0:00:04]} 53. Qe7+ {[%clk 0:00:06]}  Kg7 {[%clk 0:00:04]} 54. Nd8 {[%clk 0:00:06]}  Nf4 {[%clk 0:00:04]} 55. Qxf7+ {[%clk 0:00:05]}  Kh6 {[%clk 0:00:03]} 56. Qf6+ {[%clk 0:00:05]}  Kh5 {[%clk 0:00:03]} 57. Qf5+ {[%clk 0:00:05]}  Kh6 {[%clk 0:00:03]} 58. Nf7+ {[%clk 0:00:05]}  Kg7 {[%clk 0:00:03]} 59. Nxe5 {[%clk 0:00:05]}  Ne2+ {[%clk 0:00:02]} 60. Kg4 {[%clk 0:00:05]}  Nd4 {[%clk 0:00:03]} 61. Qf7+ {[%clk 0:00:05]}  Kh8 {[%clk 0:00:03]} 62. Ng6# {[%clk 0:00:06]} 1-0


[Site "https://www.chess.com"]

[Event "Titled Tuesday Blitz May 30 Early 2023"]
[White "Lehtosaari, Mauri"]
[Black "Toktomushev, Teimur"]
[WhiteFideId "501999"]
[BlackFideId "14176726"]
[WhiteElo "2525"]
[BlackElo "2116"]
[Result "1-0"]
[Round "06"]
[TimeControl "180+2"]
[Date "2023.05.30"]
[WhiteClock "0:00:52"]
[BlackClock "0:00:00"]

1. d4 {[%clk 0:03:00]}  d5 {[%clk 0:02:58]} 2. Nf3 {[%clk 0:02:55]}  Nf6 {[%clk 0:02:58]} 3. Bg5 {[%clk 0:02:53]}  Ne4 {[%clk 0:02:46]} 4. Bf4 {[%clk 0:02:53]}  c5 {[%clk 0:02:46]} 5. e3 {[%clk 0:02:53]}  Nc6 {[%clk 0:02:46]} 6. c3 {[%clk 0:02:52]}  Qb6 {[%clk 0:01:57]} 7. Qb3 {[%clk 0:02:52]}  c4 {[%clk 0:01:56]} 8. Qxb6 {[%clk 0:02:51]}  axb6 {[%clk 0:01:56]} 9. Nfd2 {[%clk 0:02:52]}  Bf5 {[%clk 0:01:46]} 10. Be2 {[%clk 0:02:51]}  b5 {[%clk 0:01:42]} 11. Bf3 {[%clk 0:02:45]}  Nxd2 {[%clk 0:00:48]} 12. Nxd2 {[%clk 0:02:44]}  e6 {[%clk 0:00:48]} 13. e4 {[%clk 0:02:44]}  dxe4 {[%clk 0:00:48]} 14. Nxe4 {[%clk 0:02:43]}  b4 {[%clk 0:00:42]} 15. Nd6+ {[%clk 0:02:34]}  Bxd6 {[%clk 0:00:41]} 16. Bxd6 {[%clk 0:02:35]}  Kd7 {[%clk 0:00:23]} 17. Bc5 {[%clk 0:02:03]}  bxc3 {[%clk 0:00:13]} 18. bxc3 {[%clk 0:02:02]}  b6 {[%clk 0:00:06]} 19. Bxb6 {[%clk 0:01:50]}  Ra3 {[%clk 0:00:06]} 20. Rc1 {[%clk 0:01:40]}  Rb8 {[%clk 0:00:03]} 21. Bc5 {[%clk 0:01:37]}  Rxa2 {[%clk 0:00:03]} 22. O-O {[%clk 0:01:37]}  Na5 {[%clk 0:00:01]} 23. Ra1 {[%clk 0:01:21]}  Rxa1 {[%clk 0:00:01]} 24. Rxa1 {[%clk 0:01:20]}  Rb5 {[%clk 0:00:01]} 25. Bb4 {[%clk 0:01:16]}  Nc6 {[%clk 0:00:02]} 26. Bc5 {[%clk 0:00:55]}  Rb3 {[%clk 0:00:02]} 27. Rc1 {[%clk 0:00:55]}  Nd8 {[%clk 0:00:01]} 28. Bd1 {[%clk 0:00:53]}  Rb2 {[%clk 0:00:00]} 29. Ba4+ {[%clk 0:00:52]} 1-0


[Site "https://www.chess.com"]

[Event "Titled Tuesday Blitz May 30 Early 2023"]
[White "ChawitAp"]
[Black "robertoalejandro10"]
[WhiteElo "2409"]
[BlackElo "2524"]
[Result "1-0"]
[Round "06"]
[TimeControl "180+2"]
[Date "2023.05.30"]
[WhiteClock "0:00:29"]
[BlackClock "0:00:00"]

1. d4 {[%clk 0:02:59]}  Nf6 {[%clk 0:02:58]} 2. Nf3 {[%clk 0:03:00]}  c5 {[%clk 0:02:58]} 3. c3 {[%clk 0:03:00]}  g6 {[%clk 0:02:58]} 4. Bf4 {[%clk 0:03:00]}  Bg7 {[%clk 0:02:58]} 5. Nbd2 {[%clk 0:03:00]}  b6 {[%clk 0:02:58]} 6. e3 {[%clk 0:02:59]}  Bb7 {[%clk 0:02:59]} 7. Be2 {[%clk 0:03:00]}  O-O {[%clk 0:02:59]} 8. O-O {[%clk 0:03:01]}  d6 {[%clk 0:02:59]} 9. a4 {[%clk 0:03:01]}  Nbd7 {[%clk 0:02:59]} 10. a5 {[%clk 0:03:01]}  a6 {[%clk 0:02:59]} 11. axb6 {[%clk 0:03:01]}  Qxb6 {[%clk 0:02:59]} 12. Nc4 {[%clk 0:03:01]}  Qc7 {[%clk 0:02:58]} 13. Na5 {[%clk 0:02:57]}  Be4 {[%clk 0:02:56]} 14. Nd2 {[%clk 0:02:53]}  Rab8 {[%clk 0:02:29]} 15. Nxe4 {[%clk 0:02:49]}  Nxe4 {[%clk 0:02:30]} 16. Qc2 {[%clk 0:02:33]}  Nef6 {[%clk 0:02:04]} 17. Bxa6 {[%clk 0:02:31]}  Nd5 {[%clk 0:02:04]} 18. Bg3 {[%clk 0:02:12]}  cxd4 {[%clk 0:02:03]} 19. exd4 {[%clk 0:02:10]}  Nb4 {[%clk 0:01:36]} 20. Qe2 {[%clk 0:02:10]}  Nxa6 {[%clk 0:01:32]} 21. Qxa6 {[%clk 0:02:10]}  Rxb2 {[%clk 0:01:13]} 22. Nc6 {[%clk 0:02:04]}  Bf6 {[%clk 0:00:49]} 23. d5 {[%clk 0:01:47]}  Nc5 {[%clk 0:00:46]} 24. Qc4 {[%clk 0:01:38]}  Qd7 {[%clk 0:00:16]} 25. Ra7 {[%clk 0:01:36]}  Rb7 {[%clk 0:00:16]} 26. Rxb7 {[%clk 0:01:32]}  Qxb7 {[%clk 0:00:17]} 27. h4 {[%clk 0:01:27]}  h5 {[%clk 0:00:17]} 28. Re1 {[%clk 0:01:25]}  e5 {[%clk 0:00:09]} 29. f4 {[%clk 0:01:04]}  e4 {[%clk 0:00:05]} 30. Bf2 {[%clk 0:01:03]}  Nd3 {[%clk 0:00:05]} 31. Rxe4 {[%clk 0:01:00]}  Qb1+ {[%clk 0:00:04]} 32. Kh2 {[%clk 0:00:38]}  Nxf2 {[%clk 0:00:04]} 33. Re2 {[%clk 0:00:37]}  Ng4+ {[%clk 0:00:03]} 34. Kg3 {[%clk 0:00:37]}  Qg1 {[%clk 0:00:02]} 35. Qe4 {[%clk 0:00:32]}  Bxh4+ {[%clk 0:00:01]} 36. Kf3 {[%clk 0:00:32]}  Qh2 {[%clk 0:00:02]} 37. Qe7 {[%clk 0:00:28]}  Qg3+ {[%clk 0:00:00]} 38. Ke4 {[%clk 0:00:29]} 1-0


[Site "https://www.chess.com"]